fUST/lending_fUST_20250301
["ID","MTS","AMOUNT","RATE_DAILY","PERIOD"]
[354929996,1740828648975,-500.0,0.00032946,2]
[354929997,1740828648985,-500.0,0.00032946,2]
[354929998,1740828648995,-500.0,0.00032946,2]
[354929999,1740828649004,-500.0,0.00032946,2]
[354930000,1740828649014,-500.0,0.00032946,2]
[354930001,1740828649023,-1665.36,0.00032946,2]
[354930002,1740828649033,-685.49,0.00032946,2]
[354930003,1740828649042,-500.0,0.00032946,2]
[354930004,1740828649051,-500.0,0.00032946,2]
[354930005,1740828649060,-151.0,0.00032946,14]
[354930006,1740828649076,-932.09,0.00032946,2]
[354930007,1740828649085,-500.0,0.00032946,2]
[354930008,1740828649095,-1244.9,0.00032946,2]
[354930009,1740828649105,-151.0,0.00032946,14]
[354930010,1740828649114,-500.0,0.00032946,2]
[354930011,1740828649123,-666.796252,0.00032946,14]
[354930012,1740828649135,-151.0,0.00032946,14]
[354930013,1740828649144,-666.796252,0.00032946,14]
[354930014,1740828649153,-151.0,0.00032946,14]
[354930015,1740828649162,-500.0,0.00032946,2]
[354930016,1740828649171,-805.72,0.00032946,2]
[354930017,1740828649180,-500.0,0.00032946,2]
[354930018,1740828649191,-500.0,0.00032946,2]
[354930019,1740828649206,-713.53,0.00032946,2]
[354930020,1740828649221,-500.0,0.00032946,2]
[354930021,1740828649234,-500.0,0.00032946,2]
[354930022,1740828649247,-500.0,0.00032946,2]
[354930023,1740828649258,-151.0,0.00032946,14]
[354930024,1740828649268,-151.0,0.00032946,14]
[354930025,1740828649281,-500.0,0.00032946,2]
[354930026,1740828649293,-500.0,0.00032946,2]
[354930027,1740828649305,-638.98,0.00032946,2]
[354930028,1740828649317,-500.0,0.00032946,2]
[354930029,1740828649329,-1384.22,0.00032946,2]
[354930030,1740828649342,-500.0,0.00032946,2]
[354930031,1740828649354,-500.0,0.00032946,2]
[354930032,1740828649367,-511.88600036,0.00032946,2]
[354930033,1740828649380,-500.0,0.00032946,2]
[354930034,1740828649394,-500.0,0.00032946,2]
[354930035,1740828649407,-500.0,0.00032946,2]
[354930036,1740828649421,-1251.13,0.00032946,2]
[354930037,1740828649433,-500.0,0.00032946,2]
[354930038,1740828649444,-151.0,0.00032946,14]
[354930039,1740828649456,-500.0,0.00032946,2]
[354930040,1740828649470,-820.85,0.00032946,2]
[354930041,1740828649483,-153.573644,0.00032946,14]
[354930042,1740828649495,-153.573644,0.00032946,14]
[354930043,1740828649508,-507.11,0.00032946,2]
[354930044,1740828649518,-500.0,0.00032946,2]
[354930045,1740828649529,-12735.22,0.00032946,2]
[354930046,1740828649541,-500.0,0.00032946,2]
[354930047,1740828649552,-2189.28,0.00032946,2]
[354930048,1740828649566,-595.46,0.00032946,2]
[354930049,1740828649578,-500.0,0.00032946,2]
[354930050,1740828649591,-500.0,0.00032946,2]
[354930051,1740828649603,-500.0,0.00032946,2]
[354930052,1740828649616,-500.0,0.00032946,2]
[354930053,1740828649629,-694.69,0.00032946,2]
[354930054,1740828649642,-500.0,0.00032946,2]
[354930055,1740828649654,-3413.22,0.00032946,2]
[354930056,1740828649668,-500.0,0.00032946,2]
[354930057,1740828649678,-522.12,0.00032946,2]
[354930058,1740828649688,-817.07,0.00032946,2]
[354930059,1740828649699,-681.69,0.00032946,2]
[354930060,1740828649710,-504.01484,0.00032946,14]
[354930061,1740828649721,-500.0,0.00032946,2]
[354930062,1740828649734,-504.01484,0.00032946,14]
[354930063,1740828649748,-512.8356983,0.00032946,2]
[354930064,1740828649761,-500.0,0.00032946,2]
[354930065,1740828649772,-819.23,0.00032946,2]
[354930066,1740828649782,-543.98,0.00032946,2]
[354930067,1740828649793,-500.0,0.00032946,2]
[354930068,1740828649804,-2250.89,0.00032946,2]
[354930069,1740828649816,-533.095441,0.00032946,14]
[354930070,1740828649829,-1919.64,0.00032946,2]
[354930071,1740828649840,-1258.68,0.00032946,2]
[354930072,1740828649851,-3268.62,0.00032946,2]
[354930073,1740828649861,-533.095441,0.00032946,14]
[354930074,1740828649872,-1984.99,0.00032946,2]
[354930075,1740828649884,-500.0,0.00032946,2]
[354930076,1740828649895,-2005.48,0.00032946,2]
[354930077,1740828649907,-1467.72,0.00032946,2]
[354930078,1740828649918,-190751.02,0.00032946,2]
[354930079,1740828649929,-1266.16,0.00032946,2]
[354930080,1740828649940,-465.10513323,0.00032946,2]
[354930081,1740828649954,-677.16,0.00032946,2]
[354930082,1740828649965,-1598.214686,0.00032946,14]
[354930083,1740828649975,-1000.0,0.00032946,28]
[354930084,1740828649986,-3618.9,0.00032946,2]
[354930085,1740828649997,-500.0,0.00032946,2]
[354930086,1740828650009,-1000.0,0.00032946,28]
[354930087,1740828650020,-1000.0,0.00032946,28]
[354930088,1740828650031,-1000.0,0.00032946,28]
[354930089,1740828650042,-1000.0,0.00032946,28]
[354930090,1740828650053,-1000.0,0.00032946,28]
[354930091,1740828650064,-1573.46,0.00032946,2]
[354930092,1740828650075,-1598.214686,0.00032946,14]
[354930093,1740828650086,-500.0,0.00032946,2]
[354930094,1740828650097,-1000.0,0.00032946,28]
[354930095,1740828650108,-1000.0,0.00032946,28]
[354930096,1740828650119,-1000.0,0.00032946,28]
[354930097,1740828650131,-1000.0,0.00032946,28]
[354930098,1740828650142,-1000.0,0.00032946,28]
[354930099,1740828650153,-1000.0,0.00032946,28]
[354930100,1740828650164,-1000.0,0.00032946,28]
[354930101,1740828650175,-1000.0,0.00032946,28]
[354930102,1740828650186,-1000.0,0.00032946,28]
[354930103,1740828650196,-1000.0,0.00032946,28]
[354930104,1740828650210,-856.4,0.00032946,2]
[354930105,1740828650220,-1000.0,0.00032946,28]
[354930106,1740828650231,-1000.0,0.00032946,28]
[354930107,1740828650242,-1000.0,0.00032946,28]
[354930108,1740828650252,-1000.0,0.00032946,28]
[354930109,1740828650263,-1000.0,0.00032946,28]
[354930110,1740828650274,-1000.0,0.00032946,28]
[354930111,1740828650285,-1000.0,0.00032946,28]
[354930112,1740828650296,-1851.16,0.00032946,2]
[354930113,1740828650307,-1000.0,0.00032946,28]
[354930114,1740828650318,-1000.0,0.00032946,28]
[354930115,1740828650328,-1000.0,0.00032946,28]
[354930116,1740828650339,-1000.0,0.00032946,28]
[354930117,1740828650350,-1000.0,0.00032946,28]
[354930118,1740828650361,-1000.0,0.00032946,28]
[354930119,1740828650372,-1000.0,0.00032946,28]
[354930120,1740828650382,-1000.0,0.00032946,28]
[354930121,1740828650392,-1000.0,0.00032946,28]
[354930122,1740828650403,-1000.0,0.00032946,28]
[354930123,1740828650416,-1000.0,0.00032946,28]
[354930124,1740828650427,-614.63,0.00032946,2]
[354930125,1740828650439,-1000.0,0.00032946,28]
[354930126,1740828650450,-1000.0,0.00032946,28]
[354930127,1740828650464,-1000.0,0.00032946,28]
[354930128,1740828650475,-1000.0,0.00032946,28]
[354930129,1740828650487,-1810.25,0.00032946,2]
[354930130,1740828650499,-1000.0,0.00032946,28]
[354930131,1740828650511,-1000.0,0.00032946,28]
[354930132,1740828650522,-1000.0,0.00032946,28]
[354930133,1740828650533,-1000.0,0.00032946,28]
[354930134,1740828650544,-1000.0,0.00032946,28]
[354930135,1740828650555,-1000.0,0.00032946,28]
[354930136,1740828650566,-1000.0,0.00032946,28]
[354930137,1740828650576,-1000.0,0.00032946,28]
[354930138,1740828650587,-1000.0,0.00032946,28]
[354930139,1740828650598,-1000.0,0.00032946,28]
[354930140,1740828650610,-1000.0,0.00032946,28]
[354930141,1740828650621,-1000.0,0.00032946,28]
[354930142,1740828650631,-1000.0,0.00032946,28]
[354930143,1740828650643,-5280.75,0.00032946,2]
[354930144,1740828650654,-1000.0,0.00032946,28]
[354930145,1740828650664,-1000.0,0.00032946,28]
[354930146,1740828650675,-1000.0,0.00032946,28]
[354930147,1740828650686,-1000.0,0.00032946,28]
[354930148,1740828650698,-500.0,0.00032946,2]
[354930149,1740828650711,-1000.0,0.00032946,28]
[354930150,1740828650723,-1000.0,0.00032946,28]
[354930151,1740828650734,-1000.0,0.00032946,28]
[354930152,1740828650746,-1000.0,0.00032946,28]
[354930153,1740828650757,-500.0,0.00032946,2]
[354930154,1740828650768,-1000.0,0.00032946,28]
[354930155,1740828650779,-1000.0,0.00032946,28]
[354930156,1740828650790,-1000.0,0.00032946,28]
[354930157,1740828650801,-1000.0,0.00032946,28]
[354930158,1740828650811,-1000.0,0.00032946,28]
[354930159,1740828650822,-1000.0,0.00032946,28]
[354930160,1740828650833,-11069.88,0.00032946,2]
[354930161,1740828650844,-1000.0,0.00032946,28]
[354930162,1740828650854,-712.53,0.00032946,2]
[354930163,1740828650867,-1000.0,0.00032946,28]
[354930164,1740828650878,-1000.0,0.00032946,28]
[354930165,1740828650889,-1000.0,0.00032946,28]
[354930166,1740828650900,-500.0,0.00032946,120]
[354930167,1740828650912,-1000.0,0.00032946,28]
[354930168,1740828650923,-1000.0,0.00032946,28]
[354930169,1740828650934,-630.04,0.00032946,2]
[354930170,1740828650945,-1000.0,0.00032946,28]
[354930171,1740828650958,-1000.0,0.00032946,28]
[354930172,1740828650969,-1000.0,0.00032946,28]
[354930173,1740828650980,-967.310107,0.00032946,28]
[354930174,1740828650990,-500.0,0.00032946,2]
[354930175,1740828651002,-500.0,0.00032946,2]
[354930176,1740828651013,-2375.52,0.00032946,2]
[354930177,1740828651024,-1130.11,0.00032946,2]
[354930178,1740828651035,-1087.88,0.00032946,2]
[354930179,1740828651049,-500.0,0.00032946,2]
[354930180,1740828651061,-653.59,0.00032946,2]
[354930181,1740828651072,-2654.48,0.00032946,2]
[354930182,1740828651083,-1169.08,0.00032946,2]
[354930183,1740828651095,-241.244594,0.00032946,14]
[354930184,1740828651105,-500.0,0.00032946,2]
[354930185,1740828651117,-241.244594,0.00032946,14]
[354930186,1740828651128,-508.02,0.00032946,2]
[354930187,1740828651138,-246.804179,0.00032946,14]
[354930188,1740828651149,-246.804179,0.00032946,14]
[354930189,1740828651159,-786.55,0.00032946,2]
[354930190,1740828651170,-241.244594,0.00032946,14]
[354930191,1740828651181,-241.244594,0.00032946,14]
[354930192,1740828651192,-811.26,0.00032946,2]
[354930193,1740828651203,-246.804179,0.00032946,14]
[354930194,1740828651214,-246.804179,0.00032946,14]
[354930195,1740828651225,-991.266466,0.00032946,14]
[354930196,1740828651235,-500.0,0.00032946,2]
[354930197,1740828651246,-500.0,0.00032946,2]
[354930198,1740828651257,-1932.35,0.00032946,2]
[354930199,1740828651268,-1485.1,0.00032946,2]
[354930200,1740828651279,-792.91,0.00032946,2]
[354930201,1740828651289,-991.266466,0.00032946,14]
[354930202,1740828651300,-500.0,0.00032946,2]
[354930203,1740828651311,-1449.49,0.00032946,2]
[354930204,1740828651321,-1135.48,0.00032946,2]
[354930205,1740828651332,-500.0,0.00032946,2]
[354930206,1740828651343,-575.57,0.00032946,2]
[354930207,1740828651354,-1164.6,0.00032946,2]
[354930208,1740828651365,-33274.42,0.00032946,2]
[354930209,1740828651376,-500.0,0.00032946,2]
[354930210,1740828651387,-1252.98,0.00032946,2]
[354930211,1740828651397,-220.492046,0.00032946,14]
[354930212,1740828651410,-220.492046,0.00032946,14]
[354930213,1740828651424,-1536.28,0.00032946,2]
[354930214,1740828651433,-500.0,0.00032946,2]
[354930215,1740828651443,-220.492046,0.00032946,14]
[354930216,1740828651453,-220.492046,0.00032946,14]
[354930217,1740828651462,-249.0502652,0.00032946,2]
[354930218,1740828651472,-500.0,0.00032946,2]
[354930219,1740828651481,-1633.33,0.00032946,2]
[354930220,1740828651490,-2414.76,0.00032946,2]
[354930221,1740828651500,-151.0,0.00032946,14]
[354930222,1740828651509,-151.0,0.00032946,14]
[354930223,1740828651518,-546.01,0.00032946,2]
[354930224,1740828651528,-253.551633,0.00032946,14]
[354930225,1740828651538,-253.551633,0.00032946,14]
[354930226,1740828651548,-500.0,0.00032946,2]
[354930227,1740828651557,-253.551633,0.00032946,14]
[354930228,1740828651567,-253.551633,0.00032946,14]
[354930229,1740828651576,-902.1,0.00032946,2]
[354930230,1740828651586,-561.47,0.00032946,2]
[354930231,1740828651595,-2073.08,0.00032946,2]
[354930232,1740828651605,-500.0,0.00032946,2]
[354930233,1740828651614,-1114.64,0.00032946,2]
[354930234,1740828651624,-151.0,0.00032946,14]
[354930235,1740828651635,-500.0,0.00032946,2]
[354930236,1740828651644,-151.0,0.00032946,14]
[354930237,1740828651654,-509.06,0.00032946,2]
[354930238,1740828651664,-522.8,0.00032946,2]
[354930239,1740828651673,-500.0,0.00032946,2]
[354930240,1740828651683,-871.6,0.00032946,2]
[354930241,1740828651693,-732.27,0.00032946,2]
[354930242,1740828651703,-500.0,0.00032946,2]
[354930243,1740828651713,-500.0,0.00032946,2]
[354930244,1740828651723,-151.0,0.00032946,14]
[354930245,1740828651732,-151.0,0.00032946,14]
[354930246,1740828651742,-6703.51,0.00032946,2]
[354930247,1740828651752,-500.0,0.00032955,30]
[354930248,1740828651762,-880.66187523,0.00032955,30]
[354930249,1740828651771,-150.47,0.00032955,30]
[354930250,1740828651781,-523.34145712,0.00032955,30]
[354930251,1740828651791,-150.47,0.00032955,30]
[354930252,1740828651801,-500.0,0.00032955,30]
[354930253,1740828651810,-150.47,0.00032955,30]
[354930254,1740828651820,-500.0,0.00032955,30]
[354930255,1740828651835,-500.0,0.00032955,30]
[354930256,1740828651850,-500.0,0.00032955,30]
[354930257,1740828651859,-500.0,0.00032955,30]
[354930258,1740828651869,-500.0,0.00032955,30]
[354930259,1740828651879,-151.0,0.00032955,14]
[354930260,1740828651890,-1000.0,0.00032958,120]
[354930261,1740828651900,-500.0,0.00032972,120]
[354930262,1740828651911,-500.0,0.00032972,120]
[354930263,1740828651921,-500.0,0.00032972,120]
[354930264,1740828651931,-245.62,0.00032972,120]
[354930265,1740828651942,-500.0,0.00032972,120]
[354930266,1740828651953,-500.0,0.00032972,120]
[354930267,1740828651962,-500.0,0.00032972,120]
[354930268,1740828651971,-500.0,0.00032972,120]
[354930269,1740828651980,-500.0,0.00032972,120]
[354930270,1740828651989,-500.0,0.00032972,120]
[354930271,1740828651998,-500.0,0.00032972,120]
[354930272,1740828652008,-500.0,0.00032972,120]
[354930273,1740828652017,-500.0,0.00032972,120]
[354930274,1740828652026,-500.0,0.00032972,120]
[354930275,1740828652035,-530.38,0.00032972,120]
[354930276,1740828652530,-500.0,0.00032972,120]
[354930277,1740828652551,-500.0,0.00032972,120]
[354930278,1740828652570,-500.0,0.00032972,120]
[354930279,1740828652585,-480.990783,0.00032972,14]
[354930280,1740828652594,-480.990783,0.00032972,14]
[354930281,1740828652604,-1598.214686,0.00032972,14]
[354930282,1740828652613,-1598.214686,0.00032972,14]
[354930283,1740828652622,-151.0,0.00032972,14]
[354930284,1740828652632,-1000.0,0.00032973,2]
[354930285,1740828652642,-500.0,0.00032973,5]
[354930286,1740828652652,-812.81066361,0.00032982,30]
[354930287,1740828652661,-150.49524711,0.00032982,30]
[354930288,1740828652671,-150.96735809,0.00032982,30]
[354930289,1740828652680,-500.0,0.00032982,30]
[354930290,1740828652690,-218.45826622,0.00032982,30]
[354930291,1740828652700,-500.0,0.00032982,30]
[354930292,1740828652711,-500.0,0.00032982,30]
[354930293,1740828652720,-500.0,0.00032982,30]
[354930294,1740828652730,-500.0,0.00032982,30]
[354930295,1740828652739,-511.97663454,0.00032982,30]
[354930296,1740828652749,-1000.0,0.00032986,120]
[354930297,1740828652759,-262.51191208,0.00032986,30]
[354930298,1740828652768,-305.68,0.00033,120]
[354930299,1740828652778,-300.0,0.00033,7]
[354930300,1740828652787,-2511.44662589,0.00033,2]
[354930301,1740828652796,-500.0,0.0003301,30]
[354930302,1740828652806,-500.0,0.0003301,30]
[354930303,1740828652815,-500.0,0.0003301,30]
[354930304,1740828652824,-500.0,0.0003301,30]
[354930305,1740828652834,-806.69571627,0.0003301,30]
[354930306,1740828652844,-1000.0,0.00033013,120]
[354930307,1740828652854,-160.0,0.00033034,2]
[354930308,1740828652863,-506.54602435,0.00033037,30]
[354930309,1740828652873,-500.0,0.00033037,30]
[354930310,1740828652883,-975.47426465,0.00033037,30]
[354930311,1740828652896,-500.0,0.00033037,30]
[354930312,1740828652905,-1000.0,0.00033041,120]
[354930313,1740828652914,-151.0,0.00033046,14]
[354930314,1740828652923,-296.71063,0.00033046,14]
[354930315,1740828652932,-266.312781,0.00033046,14]
[354930316,1740828652942,-266.312781,0.00033046,14]
[354930317,1740828652951,-158.883899,0.00033046,14]
[354930318,1740828652961,-158.883899,0.00033046,14]
[354930319,1740828652976,-266.312781,0.00033046,14]
[354930320,1740828652994,-266.312781,0.00033046,14]
[354930321,1740828653004,-158.883899,0.00033046,14]
[354930322,1740828653014,-158.883899,0.00033046,14]
[354930323,1740828653023,-209.994735,0.00033046,14]
[354930324,1740828653032,-209.994735,0.00033046,14]
[354930325,1740828653041,-209.994735,0.00033046,14]
[354930326,1740828653051,-209.994735,0.00033046,14]
[354930327,1740828653059,-480.990783,0.00033046,14]
[354930328,1740828653069,-480.990783,0.00033046,14]
[354930329,1740828653078,-480.990783,0.00033046,14]
[354930330,1740828653087,-480.990783,0.00033046,14]
[354930331,1740828653096,-511.45,0.00033046,2]
[354930332,1740828653106,-541.01,0.00033046,2]
[354930333,1740828653114,-500.0,0.00033046,2]
[354930334,1740828653124,-1066.95,0.00033046,2]
[354930335,1740828653133,-151.0,0.00033046,14]
[354930336,1740828653143,-261.522461,0.00033046,14]
[354930337,1740828653153,-1319.99,0.00033046,2]
[354930338,1740828653163,-151.0,0.00033046,14]
[354930339,1740828653172,-151.0,0.00033046,14]
[354930340,1740828653182,-806.57,0.00033046,2]
[354930341,1740828653192,-800.29,0.00033046,2]
[354930342,1740828653201,-500.0,0.00033046,2]
[354930343,1740828653211,-151.0,0.00033046,14]
[354930344,1740828653221,-151.0,0.00033046,14]
[354930345,1740828653230,-151.0,0.00033046,14]
[354930346,1740828653240,-243.061761,0.00033046,14]
[354930347,1740828653249,-243.061761,0.00033046,14]
[354930348,1740828653259,-500.0,0.00033046,2]
[354930349,1740828653268,-243.061761,0.00033046,14]
[354930350,1740828653278,-243.061761,0.00033046,14]
[354930351,1740828653287,-243.061761,0.00033046,14]
[354930352,1740828653297,-243.061761,0.00033046,14]
[354930353,1740828653306,-1128.91,0.00033046,2]
[354930354,1740828653315,-500.0,0.00033046,2]
[354930355,1740828653325,-500.0,0.00033046,2]
[354930356,1740828653334,-967.25,0.00033046,2]
[354930357,1740828653343,-500.0,0.00033046,2]
[354930358,1740828653353,-500.0,0.00033046,2]
[354930359,1740828653362,-500.0,0.00033046,2]
[354930360,1740828653372,-151.0,0.00033046,14]
[354930361,1740828653381,-151.0,0.00033046,14]
[354930362,1740828653390,-151.0,0.00033046,14]
[354930363,1740828653399,-151.0,0.00033046,14]
[354930364,1740828653408,-279.250524,0.00033046,14]
[354930365,1740828653420,-1200.66,0.00033046,2]
[354930366,1740828653429,-1087.652867,0.00033046,14]
[354930367,1740828653438,-1087.652867,0.00033046,14]
[354930368,1740828653447,-1087.652867,0.00033046,14]
[354930369,1740828653457,-1087.652867,0.00033046,14]
[354930370,1740828653467,-1087.652867,0.00033046,14]
[354930371,1740828653477,-1087.652867,0.00033046,14]
[354930372,1740828653486,-901.58,0.00033046,2]
[354930373,1740828653498,-270.166846,0.00033046,14]
[354930374,1740828653507,-270.166846,0.00033046,14]
[354930375,1740828653517,-270.166846,0.00033046,14]
[354930376,1740828653527,-270.166846,0.00033046,14]
[354930377,1740828653537,-500.0,0.00033046,2]
[354930378,1740828653546,-500.0,0.00033046,2]
[354930379,1740828653555,-205.537317,0.00033046,14]
[354930380,1740828653565,-500.0,0.00033046,2]
[354930381,1740828653575,-500.0,0.00033046,2]
[354930382,1740828653584,-500.0,0.00033046,2]
[354930383,1740828653593,-151.0,0.00033046,14]
[354930384,1740828653602,-151.0,0.00033046,14]
[354930385,1740828653612,-666.796252,0.00033046,14]
[354930386,1740828653621,-666.796252,0.00033046,14]
[354930387,1740828653630,-665.14,0.00033046,2]
[354930388,1740828653640,-151.0,0.00033046,14]
[354930389,1740828653650,-151.0,0.00033046,14]
[354930390,1740828653659,-666.796252,0.00033046,14]
[354930391,1740828653668,-666.796252,0.00033046,14]
[354930392,1740828653677,-151.0,0.00033046,14]
[354930393,1740828653687,-151.0,0.00033046,14]
[354930394,1740828653696,-500.0,0.00033046,2]
[354930395,1740828653706,-907.45,0.00033046,2]
[354930396,1740828653715,-500.0,0.00033046,2]
[354930397,1740828653725,-151.0,0.00033046,14]
[354930398,1740828653735,-151.0,0.00033046,14]
[354930399,1740828653744,-1520.5,0.00033046,2]
[354930400,1740828653754,-151.0,0.00033046,14]
[354930401,1740828653763,-298.970194,0.00033046,14]
[354930402,1740828653773,-500.0,0.00033046,2]
[354930403,1740828653782,-1401.64,0.00033046,2]
[354930404,1740828653791,-864.78,0.00033046,2]
[354930405,1740828653800,-500.0,0.00033046,120]
[354930406,1740828653810,-666.17,0.00033046,2]
[354930407,1740828653819,-500.0,0.00033046,2]
[354930408,1740828653828,-599.45,0.00033046,2]
[354930409,1740828653838,-500.0,0.00033046,2]
[354930410,1740828653848,-153.573644,0.00033046,14]
[354930411,1740828653857,-153.573644,0.00033046,14]
[354930412,1740828653866,-153.573644,0.00033046,14]
[354930413,1740828653875,-153.573644,0.00033046,14]
[354930414,1740828653885,-12639.73,0.00033046,2]
[354930415,1740828653895,-552.44,0.00033046,2]
[354930416,1740828653904,-500.0,0.00033046,2]
[354930417,1740828653914,-2705.17,0.00033046,2]
[354930418,1740828653924,-726.57,0.00033046,2]
[354930419,1740828653934,-500.0,0.00033046,2]
[354930420,1740828653943,-1698.21,0.00033046,2]
[354930421,1740828653953,-504.01484,0.00033046,14]
[354930422,1740828653963,-504.01484,0.00033046,14]
[354930423,1740828653972,-504.01484,0.00033046,14]
[354930424,1740828653982,-1862.11,0.00033046,2]
[354930425,1740828653992,-504.01484,0.00033046,14]
[354930426,1740828654002,-533.095441,0.00033046,14]
[354930427,1740828654011,-533.095441,0.00033046,14]
[354930428,1740828654023,-533.095441,0.00033046,14]
[354930429,1740828654032,-533.095441,0.00033046,14]
[354930430,1740828654042,-533.095441,0.00033046,14]
[354930431,1740828654051,-533.095441,0.00033046,14]
[354930432,1740828654061,-500.0,0.00033046,2]
[354930433,1740828654070,-1598.214686,0.00033046,14]
[354930434,1740828654080,-1598.214686,0.00033046,14]
[354930435,1740828654089,-500.0,0.00033046,2]
[354930436,1740828654099,-1598.214686,0.00033046,14]
[354930437,1740828654108,-1598.214686,0.00033046,14]
[354930438,1740828654118,-1006.57,0.00033046,2]
[354930439,1740828654128,-525.28,0.00033046,2]
[354930440,1740828654137,-2476.29,0.00033046,2]
[354930441,1740828654148,-241.244594,0.00033046,14]
[354930442,1740828654158,-246.804179,0.00033046,14]
[354930443,1740828654167,-241.244586,0.00033046,14]
[354930444,1740828654176,-246.804179,0.00033046,14]
[354930445,1740828654186,-500.0,0.00033046,2]
[354930446,1740828654196,-500.0,0.00033046,2]
[354930447,1740828654205,-991.266466,0.00033046,14]
[354930448,1740828654215,-991.266466,0.00033046,14]
[354930449,1740828654224,-991.266466,0.00033046,14]
[354930450,1740828654234,-991.266466,0.00033046,14]
[354930451,1740828654244,-900.14,0.00033046,2]
[354930452,1740828654253,-500.0,0.00033046,2]
[354930453,1740828654262,-220.492046,0.00033046,14]
[354930454,1740828654272,-220.492046,0.00033046,14]
[354930455,1740828654282,-768.95,0.00033046,2]
[354930456,1740828654292,-237.410875,0.00033046,14]
[354930457,1740828654302,-253.551633,0.00033046,14]
[354930458,1740828654311,-500.0,0.00033046,2]
[354930459,1740828654321,-253.551642,0.00033046,14]
[354930460,1740828654330,-151.0,0.00033046,14]
[354930461,1740828654339,-215.275607,0.00033047,14]
[354930462,1740828654349,-215.275607,0.00033047,14]
[354930463,1740828654358,-215.275607,0.00033047,14]
[354930464,1740828654367,-215.275607,0.00033047,14]
[354930465,1740828654377,-151.0,0.00033047,14]
[354930466,1740828654386,-239.539676,0.00033047,14]
[354930467,1740828654396,-239.539676,0.00033047,14]
[354930468,1740828654405,-266.312781,0.00033047,14]
[354930469,1740828654418,-158.883899,0.00033047,14]
[354930470,1740828654427,-266.312781,0.00033047,14]
[354930471,1740828654437,-158.883899,0.00033047,14]
[354930472,1740828654446,-209.994735,0.00033047,14]
[354930473,1740828654457,-209.994735,0.00033047,14]
[354930474,1740828654466,-2173.0,0.00033047,2]
[354930475,1740828654476,-1367.72,0.00033047,2]
[354930476,1740828654485,-500.0,0.00033047,2]
[354930477,1740828654495,-215.275607,0.00033049,14]
[354930478,1740828654505,-215.275607,0.00033049,14]
[354930479,1740828654515,-151.0,0.00033049,14]
[354930480,1740828654524,-239.539676,0.00033049,14]
[354930481,1740828654533,-239.539676,0.00033049,14]
[354930482,1740828654543,-151.0,0.00033049,14]
[354930483,1740828654552,-500.0,0.00033064,30]
[354930484,1740828654561,-500.0,0.00033064,30]
[354930485,1740828654571,-1000.0,0.00033068,120]
[354930486,1740828654580,-504.63505877,0.00033073,5]
[354930487,1740828654589,-500.0,0.00033073,5]
[354930488,1740828654599,-500.0,0.00033092,30]
[354930489,1740828654608,-500.0,0.00033092,30]
[354930490,1740828654618,-1000.0,0.00033095,120]
[354930491,1740828654627,-2523.55203801,0.000331,30]
[354930492,1740828655337,-867.4147535,0.00032298,2]
[354930493,1740828656025,-1764.56360106,0.00032298,2]
[354930494,1740828656037,-8826.74414909,0.00032298,2]
[354930495,1740828656048,-8516.59449068,0.00032298,2]